bitfinex/quotes_BTCUSD_20250615
["timestamp","ask_amount","ask_price","bid_price","bid_amount"]
[1749985617478,0.002,105260.0,105250.0,0.35623712]
[1749985617715,0.002,105260.0,105250.0,0.3629186]
[1749985617932,0.002,105260.0,105250.0,0.36291862]
[1749985618166,0.002,105260.0,105250.0,0.35623712]
[1749985618371,0.002,105260.0,105250.0,0.36291846]
[1749985618633,0.002,105260.0,105250.0,0.36291849]
[1749985619321,0.002,105260.0,105250.0,0.36291859]
[1749985619541,0.002,105260.0,105250.0,0.36291855]
[1749985620007,0.002,105260.0,105250.0,0.3629185]
[1749985620226,0.002,105260.0,105250.0,0.1697985]
[1749985620430,0.002,105260.0,105250.0,0.36275848]
[1749985620648,0.002,105260.0,105250.0,0.36275831]
[1749985620863,0.002,105260.0,105250.0,0.40865639]
[1749985621072,0.002,105260.0,105250.0,0.41533677]
[1749985621280,0.002,105260.0,105250.0,0.41533604]
[1749985621529,0.002,105260.0,105250.0,0.38684008]
[1749985621761,0.002,105260.0,105250.0,0.51365586]
[1749985621990,0.002,105260.0,105250.0,0.50697711]
[1749985622225,0.002,105260.0,105250.0,0.48916709]
[1749985622491,0.002,105260.0,105250.0,0.50697588]
[1749985622754,0.002,105260.0,105250.0,0.50697564]
[1749985623220,0.002,105260.0,105250.0,0.48916709]
[1749985623433,0.002,105260.0,105250.0,0.50697478]
[1749985623646,0.002,105260.0,105250.0,0.48916709]
[1749985623858,0.002,105260.0,105250.0,0.50697468]
[1749985624074,0.002,105260.0,105250.0,0.4689351]
[1749985624322,0.002,105260.0,105250.0,0.45112867]
[1749985624530,0.002,105260.0,105250.0,0.48905995]
[1749985624754,0.002,105260.0,105250.0,0.50679785]
[1749985625143,0.002,105260.0,105250.0,0.51722473]
[1749985625389,0.002,105260.0,105250.0,0.49948683]
[1749985625642,0.002,105260.0,105250.0,0.51722386]
[1749985625861,0.002,105260.0,105250.0,0.51722377]
[1749985626074,0.002,105260.0,105250.0,0.5349607]
[1749985626729,0.002,105260.0,105250.0,0.53496061]
[1749985626949,0.002,105260.0,105250.0,0.51722377]
[1749985627163,0.002,105260.0,105250.0,0.53496072]
[1749985627381,0.002,105260.0,105250.0,0.51722377]
[1749985627596,0.002,105260.0,105250.0,0.53496004]
[1749985627828,0.002,105260.0,105250.0,0.53495992]
[1749985628249,0.002,105260.0,105250.0,0.51722377]
[1749985628454,0.002,105260.0,105250.0,0.53495992]
[1749985628670,0.002,105260.0,105250.0,0.53495994]
[1749985629101,0.002,105260.0,105250.0,0.53495993]
[1749985629312,0.002,105260.0,105250.0,0.51722377]
[1749985629930,0.002,105260.0,105250.0,0.53496043]
[1749985630368,0.002,105260.0,105250.0,0.53496074]
[1749985630575,0.002,105260.0,105250.0,0.53496036]
[1749985630784,0.002,105260.0,105250.0,0.51722377]
[1749985631001,0.002,105260.0,105250.0,0.53495982]
[1749985631211,0.002,105260.0,105250.0,0.51722377]
[1749985631428,0.002,105260.0,105250.0,0.53496046]
[1749985631670,0.002,105260.0,105250.0,0.50679689]
[1749985631884,0.002,105260.0,105250.0,0.52453366]
[1749985632087,0.002,105260.0,105250.0,0.50679689]
[1749985632294,0.002,105260.0,105250.0,0.52453386]
[1749985632508,0.002,105260.0,105250.0,0.52453327]
[1749985632950,0.002,105260.0,105250.0,0.50679689]
[1749985633381,0.002,105260.0,105250.0,0.45484818]
[1749985633584,0.002,105260.0,105250.0,0.39779055]
[1749985635390,0.002,105260.0,105250.0,0.20483055]
[1749985635591,0.002,105260.0,105250.0,0.39771055]
[1749985637112,0.002,105260.0,105250.0,0.45476818]
[1749985637534,0.002,105260.0,105250.0,0.47763673]
[1749985640119,0.002,105260.0,105250.0,0.49544185]
[1749985640348,0.002,105260.0,105250.0,0.30256185]
[1749985640576,0.002,105260.0,105250.0,0.49564205]
[1749985641031,0.002,105260.0,105250.0,0.4956422]
[1749985641262,0.002,105260.0,105250.0,0.45990545]
[1749985641505,0.002,105260.0,105250.0,0.47770714]
[1749985641740,0.002,105260.0,105250.0,0.42064951]
[1749985641981,0.002,105260.0,105250.0,0.47892467]
[1749985642211,0.002,105260.0,105250.0,0.49672466]
[1749985642649,0.02,105280.0,105270.0,0.01454085]
[1749985642862,0.02,105280.0,105270.0,0.19006503]
[1749985643103,0.02,105280.0,105270.0,0.17209074]
[1749985643363,0.0512,105280.0,105270.0,0.33553068]
[1749985643578,0.0512,105280.0,105270.0,0.31773004]
[1749985643797,0.06145535,105280.0,105270.0,0.33553114]
[1749985644009,0.06145535,105280.0,105270.0,0.31777004]
[1749985644220,0.06145535,105280.0,105270.0,0.28936176]
[1749985644471,0.06145535,105280.0,105270.0,0.335572]
[1749985644685,0.06145535,105280.0,105270.0,0.14245195]
[1749985644918,0.06145535,105280.0,105270.0,0.31773004]
[1749985645128,0.06145535,105280.0,105270.0,0.33553198]
[1749985645338,0.06145535,105280.0,105270.0,0.33553192]
[1749985645552,0.06145535,105280.0,105270.0,0.31773004]
[1749985645790,0.06145535,105280.0,105270.0,0.33553208]
[1749985646233,0.06145535,105280.0,105270.0,0.33553197]
[1749985646451,0.06145535,105280.0,105270.0,0.31773004]
[1749985646881,0.06145535,105280.0,105270.0,0.14242299]
[1749985647089,0.06145535,105280.0,105270.0,0.33550351]
[1749985647325,0.06145535,105280.0,105270.0,0.33554351]
[1749985647537,0.06145535,105280.0,105270.0,0.33554362]
[1749985647757,0.06145535,105280.0,105270.0,0.12465004]
[1749985648016,0.06145535,105280.0,105270.0,0.33554377]
[1749985648523,0.06145535,105280.0,105270.0,0.31777004]
[1749985648727,0.06145535,105280.0,105270.0,0.33554378]
[1749985649153,0.06145535,105280.0,105270.0,0.31777004]
[1749985649674,0.06145535,105280.0,105270.0,0.33554484]
[1749985649894,0.06145535,105280.0,105270.0,0.31777004]
[1749985650341,0.06145535,105280.0,105270.0,0.33554485]
[1749985650573,0.06145535,105280.0,105270.0,0.31777004]
[1749985650817,0.06145535,105280.0,105270.0,0.33554486]
[1749985651055,0.06145535,105280.0,105270.0,0.31777004]
[1749985651277,0.06145535,105280.0,105270.0,0.33554486]
[1749985651732,0.06145535,105280.0,105270.0,0.33554477]
[1749985652178,0.06145535,105280.0,105270.0,0.31777004]
[1749985652625,0.06145535,105280.0,105270.0,0.3355448]
[1749985653308,0.06145535,105280.0,105270.0,0.31777004]
[1749985653550,0.06145535,105280.0,105270.0,0.33554486]
[1749985653773,0.06145535,105280.0,105270.0,0.33554481]
[1749985654003,0.06145535,105280.0,105270.0,0.31777004]
[1749985654465,0.06145535,105280.0,105270.0,0.33554415]
[1749985654688,0.06145535,105280.0,105270.0,0.31777004]
[1749985654908,0.06145535,105280.0,105270.0,0.33557331]
[1749985655113,0.06145535,105280.0,105270.0,0.33557324]
[1749985655321,0.06145535,105280.0,105270.0,0.31777004]
[1749985655543,0.06145535,105280.0,105270.0,0.33557326]
[1749985655755,0.40145535,105280.0,105270.0,0.33557394]
[1749985655968,0.40145535,105280.0,105270.0,0.30716709]
[1749985656176,0.40145535,105280.0,105270.0,0.1318525]
[1749985656388,0.40145535,105280.0,105270.0,0.32493276]
[1749985657004,0.40145535,105280.0,105270.0,0.32493264]
[1749985657242,0.40145535,105280.0,105270.0,0.32493265]
[1749985657730,0.40145535,105280.0,105270.0,0.32493264]
[1749985657938,0.40145535,105280.0,105270.0,0.30712709]
[1749985658615,0.40145535,105280.0,105270.0,0.32493268]
[1749985658852,0.40145535,105280.0,105270.0,0.30712709]
[1749985659097,0.40145535,105280.0,105270.0,0.32493276]
[1749985659358,0.40145535,105280.0,105270.0,0.30712709]
[1749985659609,0.40145535,105280.0,105270.0,0.3249328]
[1749985659856,0.40145535,105280.0,105270.0,0.32493277]
[1749985660086,0.40145535,105280.0,105270.0,0.32493276]
[1749985660307,0.40145535,105280.0,105270.0,0.32489276]
[1749985660521,0.40145535,105280.0,105270.0,0.30708709]
[1749985660783,0.40145535,105280.0,105270.0,0.32489275]
[1749985661219,0.40145535,105280.0,105270.0,0.32489277]
[1749985661434,0.40145535,105280.0,105270.0,0.11404709]
[1749985661653,0.40145535,105280.0,105270.0,0.32493279]
[1749985662294,0.40145535,105280.0,105270.0,0.32490536]
[1749985662724,0.40145535,105280.0,105270.0,0.32490535]
[1749985662941,0.40145535,105280.0,105270.0,0.32490577]
[1749985663360,0.40145535,105280.0,105270.0,0.32490687]
[1749985663568,0.40145535,105280.0,105270.0,0.32490693]
[1749985663786,0.40145535,105280.0,105270.0,0.15344709]
[1749985663998,0.40145535,105280.0,105270.0,0.21084533]
[1749985664208,0.40145535,105280.0,105270.0,0.22862577]
[1749985664424,0.40145535,105280.0,105270.0,0.22862623]
[1749985664700,0.40145535,105280.0,105270.0,0.22862604]
[1749985664908,0.40145535,105280.0,105270.0,0.21084533]
[1749985665550,0.40145535,105280.0,105270.0,0.22862599]
[1749985666662,0.40145535,105280.0,105270.0,0.22862621]
[1749985666871,0.40145535,105280.0,105270.0,0.22862594]
[1749985667090,0.40145535,105280.0,105270.0,0.22862607]
[1749985667299,0.40145535,105280.0,105270.0,0.22862611]
[1749985667515,0.40145535,105280.0,105270.0,0.07498611]
[1749985667729,0.40145535,105280.0,105270.0,0.22858611]
[1749985668161,0.40145535,105280.0,105270.0,0.21080533]
[1749985668373,0.40145535,105280.0,105270.0,0.05720533]
[1749985668638,0.40145535,105280.0,105270.0,0.22858754]
[1749985668857,0.43000535,105280.0,105270.0,0.22858761]
[1749985669066,0.43000535,105280.0,105270.0,0.21080533]
[1749985669273,0.43000535,105280.0,105270.0,0.2285875]
[1749985669496,0.43000535,105280.0,105270.0,0.22858751]
[1749985669984,0.43000535,105280.0,105270.0,0.22858755]
[1749985670198,0.45427566,105280.0,105270.0,0.21080533]
[1749985670411,0.43000535,105280.0,105270.0,0.22858783]
[1749985670619,0.43000535,105280.0,105270.0,0.21080533]
[1749985670832,0.43000535,105280.0,105270.0,0.22858734]
[1749985671068,0.43000535,105280.0,105270.0,0.21080533]
[1749985671322,0.43000535,105280.0,105270.0,0.22858731]
[1749985671538,0.43000535,105280.0,105270.0,0.05720533]
[1749985671756,0.43000535,105280.0,105270.0,0.22854779]
[1749985671971,0.43000535,105280.0,105270.0,0.22854818]
[1749985672183,0.43000535,105280.0,105270.0,0.21076533]
[1749985673687,0.43000535,105280.0,105270.0,0.05720533]
[1749985676720,0.43892036,105280.0,105270.0,0.05720533]
[1749985676927,0.43892032,105280.0,105270.0,0.05720533]
[1749985677566,0.43892038,105280.0,105270.0,0.05720533]
[1749985677780,0.43000535,105280.0,105270.0,0.05720533]
[1749985677959,0.43892039,105280.0,105270.0,0.05720533]
[1749985678163,0.43000535,105280.0,105270.0,0.05720533]
[1749985678369,0.43892036,105280.0,105270.0,0.05720533]
[1749985678588,0.43000535,105280.0,105270.0,0.05720533]
[1749985678800,0.43892036,105280.0,105270.0,0.05720533]
[1749985679055,0.43000535,105280.0,105270.0,0.05720533]
[1749985679262,0.43892036,105280.0,105270.0,0.05720533]
[1749985679700,0.43892039,105280.0,105270.0,0.05720533]
[1749985679923,0.43000535,105280.0,105270.0,0.05720533]
[1749985680357,0.43892041,105280.0,105270.0,0.05720533]
[1749985680573,0.43892042,105280.0,105270.0,0.05720533]
[1749985680778,0.43892041,105280.0,105270.0,0.05720533]
[1749985681206,0.43892042,105280.0,105270.0,0.05720533]
[1749985681456,0.43000535,105280.0,105270.0,0.05720533]
[1749985681676,0.43892047,105280.0,105270.0,0.05720533]
[1749985681886,0.43000535,105280.0,105270.0,0.05720533]
[1749985682333,0.43892049,105280.0,105270.0,0.05720533]
[1749985682545,0.43892052,105280.0,105270.0,0.05720533]
[1749985683210,0.43000535,105280.0,105270.0,0.05720533]
[1749985686526,0.41000535,105280.0,105270.0,0.01780533]
[1749985686775,0.032,105260.0,105250.0,0.06373666]
[1749985687468,0.060557,105260.0,105250.0,0.06373666]
[1749985687693,0.060557,105260.0,105250.0,0.02441666]
[1749985689520,0.061557,105260.0,105250.0,0.02441666]
[1749985689958,0.063557,105260.0,105250.0,0.02441666]
[1749985690372,0.065557,105260.0,105250.0,0.02441666]
[1749985690815,0.064557,105260.0,105250.0,0.02441666]
[1749985691243,0.065557,105260.0,105250.0,0.02441666]
[1749985691673,0.405557,105260.0,105250.0,0.02441666]
[1749985692984,0.0305,105250.0,105240.0,0.31316]
[1749985694099,0.0305,105250.0,105240.0,0.27384]
[1749985695198,0.0592367,105250.0,105240.0,0.27384]
[1749985697179,0.0877977,105250.0,105230.0,0.03932]
[1749985697388,0.34,105240.0,105230.0,0.03932]
[1749985697814,0.368561,105240.0,105230.0,0.03932]
[1749985699610,0.368561,105240.0,105230.0,0.04232]
[1749985700339,0.368561,105240.0,105230.0,0.04432]
[1749985701970,0.028561,105240.0,105230.0,0.04432]
[1749985702185,0.368561,105240.0,105230.0,0.07652]
[1749985702438,0.39283131,105240.0,105230.0,0.07652]
[1749985702650,0.368561,105240.0,105230.0,0.07652]
[1749985703314,0.368561,105240.0,105230.0,0.06042]
[1749985708245,0.028561,105240.0,105230.0,0.06042]
[1749985708465,0.368561,105240.0,105230.0,0.07702]
[1749985709349,0.39283131,105240.0,105230.0,0.07702]
[1749985709562,0.368561,105240.0,105230.0,0.07702]
[1749985713109,0.368561,105240.0,105230.0,0.09485088]
[1749985713327,0.368561,105240.0,105230.0,0.07702]
[1749985713557,0.368561,105240.0,105230.0,0.09485087]
[1749985714000,0.368561,105240.0,105230.0,0.09485066]
[1749985714212,0.368561,105240.0,105230.0,0.07702]
[1749985714438,0.368561,105240.0,105230.0,0.09485058]
[1749985714650,0.368561,105240.0,105230.0,0.09484952]
[1749985714854,0.368561,105240.0,105230.0,0.09484956]
[1749985715065,0.368561,105240.0,105230.0,0.07702]
[1749985715355,0.368561,105240.0,105230.0,0.09484927]
[1749985715559,0.368561,105240.0,105230.0,0.09484955]
[1749985715981,0.368561,105240.0,105230.0,0.07702]
[1749985716212,0.368561,105240.0,105230.0,0.09484933]
[1749985716650,0.368561,105240.0,105230.0,0.09484927]
[1749985717513,0.368561,105240.0,105230.0,0.06214916]
[1749985717721,0.383861,105240.0,105230.0,0.04432]
[1749985717935,0.400161,105240.0,105230.0,0.04432]
[1749985718154,0.400161,105240.0,105230.0,0.06215109]
[1749985718371,0.400161,105240.0,105230.0,0.06215131]
[1749985718582,0.400161,105240.0,105230.0,0.0621513]
[1749985718802,0.400161,105240.0,105230.0,0.04432]
[1749985719014,0.400161,105240.0,105230.0,0.06215176]
[1749985719227,0.400161,105240.0,105230.0,0.06215189]
[1749985719670,0.383861,105240.0,105230.0,0.05915188]
[1749985719883,0.368561,105240.0,105230.0,0.05715188]
[1749985720111,0.368561,105240.0,105230.0,0.05715178]
[1749985720361,0.368561,105240.0,105230.0,0.05715175]
[1749985720812,0.368561,105240.0,105230.0,0.05715176]
[1749985721043,0.400161,105240.0,105230.0,0.05715179]
[1749985721258,0.400161,105240.0,105230.0,0.03932]
[1749985723646,0.368561,105240.0,105230.0,0.03932]
[1749985723865,0.39283131,105240.0,105230.0,0.03932]
[1749985724081,0.368561,105240.0,105230.0,0.03932]
[1749985727532,0.028561,105240.0,105230.0,0.03932]
[1749985731457,0.028561,105240.0,105230.0,0.05492]
[1749985731893,0.028561,105240.0,105230.0,0.07072]
[1749985739086,0.028561,105240.0,105230.0,0.16696176]
[1749985739297,0.3687367,105250.0,105240.0,0.0309]
[1749985739501,0.3972957,105250.0,105240.0,0.0309]
[1749985740752,0.3992957,105250.0,105240.0,0.0309]
[1749985741206,0.4002957,105250.0,105240.0,0.04872474]
[1749985741412,0.4002957,105250.0,105240.0,0.0309]
[1749985741623,0.4002957,105250.0,105240.0,0.04872473]
[1749985741825,0.4002957,105250.0,105240.0,0.04872468]
[1749985742038,0.4002957,105250.0,105240.0,0.04872465]
[1749985742247,0.4002957,105250.0,105240.0,0.0309]
[1749985742450,0.4002957,105250.0,105240.0,0.04872471]
[1749985742663,0.4002957,105250.0,105240.0,0.0309]
[1749985742880,0.4002957,105250.0,105240.0,0.04872471]
[1749985743081,0.4002957,105250.0,105240.0,0.0309]
[1749985743446,0.031559,105250.0,105240.0,0.0309]
[1749985744611,0.031559,105250.0,105240.0,0.04873484]
[1749985744804,0.031559,105250.0,105240.0,0.0309]
[1749985745042,0.031559,105250.0,105240.0,0.04873428]
[1749985745261,0.031559,105250.0,105240.0,0.04873415]
[1749985745682,0.031559,105250.0,105240.0,0.04873408]
[1749985745943,0.031559,105250.0,105240.0,0.0309]
[1749985746161,0.031559,105250.0,105240.0,0.04873266]
[1749985746589,0.031559,105250.0,105240.0,0.04873223]
[1749985747013,0.031559,105250.0,105240.0,0.04869429]
[1749985747462,0.031559,105250.0,105240.0,0.0486942]
[1749985748068,0.031559,105250.0,105240.0,0.0880942]
[1749985748251,0.031559,105250.0,105240.0,0.08809403]
[1749985748541,0.031559,105250.0,105240.0,0.0703]
[1749985748759,0.031559,105250.0,105240.0,0.08809457]
[1749985748970,0.031559,105250.0,105240.0,0.0703]
[1749985749193,0.031559,105250.0,105240.0,0.08809438]
[1749985749417,0.031559,105250.0,105240.0,0.0703]
[1749985749663,0.031559,105250.0,105240.0,0.0880944]
[1749985750203,0.031559,105250.0,105240.0,0.0703]
[1749985750405,0.031559,105250.0,105240.0,0.0880942]
[1749985750617,0.031559,105250.0,105240.0,0.0703]
[1749985750839,0.031559,105250.0,105240.0,0.08809427]
[1749985751089,0.031559,105250.0,105240.0,0.0703]
[1749985763179,0.031559,105250.0,105240.0,0.0309]
[1749985763385,0.031559,105250.0,105240.0,0.0394]
[1749985769378,0.031559,105250.0,105230.0,0.0319]
[1749985769580,0.031559,105250.0,105240.0,0.0394]
[1749985769786,0.003,105250.0,105240.0,0.0394]
[1749985769986,0.03156,105250.0,105240.0,0.0394]
[1749985770355,0.03056,105250.0,105240.0,0.0394]
[1749985771620,0.03156,105250.0,105240.0,0.0394]
[1749985772145,0.03740256,105250.0,105240.0,0.0394]
[1749985772490,0.03840256,105250.0,105240.0,0.0394]
[1749985775821,0.37840256,105250.0,105240.0,0.0394]
[1749985782937,0.03840256,105250.0,105240.0,0.0394]
[1749985792999,0.03156,105250.0,105240.0,0.0553]
[1749985794068,0.03156,105250.0,105240.0,0.0703]
[1749985794909,0.03156,105250.0,105240.0,0.0553]
[1749985802909,0.03156,105250.0,105240.0,0.0394]
[1749985805024,0.03156,105250.0,105240.0,0.0546]
[1749985808499,0.03156,105250.0,105240.0,0.0394]
[1749985810205,0.03156,105250.0,105230.0,0.0312]
[1749985810375,0.03156,105250.0,105240.0,0.03932]
[1749985810604,0.003,105250.0,105230.0,0.0312]
[1749985810780,0.003,105250.0,105240.0,0.03932]
[1749985811191,0.002,105250.0,105240.0,0.03932]
[1749985811390,0.03156,105250.0,105240.0,0.03932]
[1749985811594,0.02956,105250.0,105240.0,0.03932]
[1749985811775,0.02856,105250.0,105240.0,0.03932]
[1749985811978,0.03056,105250.0,105240.0,0.03932]
[1749985812174,0.02956,105250.0,105240.0,0.03932]
[1749985812586,0.03156,105250.0,105240.0,0.03932]
[1749985825101,0.03156,105250.0,105230.0,0.07052]
[1749985825512,0.003,105250.0,105230.0,0.07052]
[1749985825935,0.02856,105240.0,105230.0,0.07052]
[1749985875091,0.02994759,105250.0,105230.0,0.07052]
[1749985875407,0.38564759,105250.0,105240.0,0.03928]
[1749985875567,0.40104759,105250.0,105240.0,0.03928]
[1749985876176,0.42760759,105250.0,105240.0,0.03928]
[1749985876348,0.08960759,105250.0,105240.0,0.03928]
[1749985876591,0.09060759,105250.0,105240.0,0.03928]
[1749985876805,0.08860759,105250.0,105240.0,0.03928]
[1749985878042,0.08960759,105250.0,105240.0,0.03928]
[1749985878247,0.09060759,105250.0,105240.0,0.03928]
[1749985883491,0.09060759,105250.0,105230.0,0.0312]
[1749985883704,0.09060759,105250.0,105240.0,0.03928]
[1749985884346,0.08760759,105250.0,105240.0,0.03928]
[1749985884760,0.09060759,105250.0,105240.0,0.03928]
[1749985885183,0.08960759,105250.0,105240.0,0.03928]
[1749985885385,0.09160759,105250.0,105240.0,0.03928]
[1749985885604,0.09260759,105250.0,105240.0,0.03928]
[1749985888273,0.09260759,105250.0,105240.0,0.05708912]
[1749985888474,0.1168779,105250.0,105240.0,0.05708931]
[1749985888679,0.43260759,105250.0,105240.0,0.05708911]
[1749985888887,0.43260759,105250.0,105240.0,0.03928]
[1749985889096,0.43260759,105250.0,105240.0,0.05708908]
[1749985889512,0.43260759,105250.0,105240.0,0.05708895]
[1749985889728,0.43260759,105250.0,105240.0,0.03928]
[1749985889952,0.43260759,105250.0,105240.0,0.05708821]
[1749985890155,0.43260759,105250.0,105240.0,0.05708813]
[1749985890362,0.43260759,105250.0,105240.0,0.05708833]
[1749985890539,0.43260759,105250.0,105240.0,0.03928]
[1749985890779,0.43260759,105250.0,105240.0,0.05708837]
[1749985890988,0.43260759,105250.0,105240.0,0.03928]
[1749985891867,0.43260759,105250.0,105240.0,0.05708844]
[1749985892089,0.43260759,105250.0,105240.0,0.03928]
[1749985892683,0.43260759,105250.0,105240.0,0.05708862]
[1749985893099,0.41720759,105250.0,105240.0,0.05708863]
[1749985893308,0.41720759,105250.0,105240.0,0.03928]
[1749985893504,0.41720759,105250.0,105240.0,0.05708904]
[1749985893712,0.41720759,105250.0,105240.0,0.03928]
[1749985894116,0.41720759,105250.0,105240.0,0.05709011]
[1749985894347,0.40150759,105250.0,105240.0,0.03928]
[1749985894543,0.40150759,105250.0,105240.0,0.05708997]
[1749985894745,0.40150759,105250.0,105240.0,0.03928]
[1749985894949,0.40150759,105250.0,105240.0,0.05709027]
[1749985895179,0.40150759,105250.0,105240.0,0.03928]
[1749985895330,0.40150759,105250.0,105240.0,0.05708974]
[1749985895539,0.40150759,105250.0,105240.0,0.05708989]
[1749985895879,0.40150759,105250.0,105240.0,0.03928]
[1749985896013,0.40150759,105250.0,105240.0,0.05708998]
[1749985896390,0.40150759,105250.0,105240.0,0.05709027]
[1749985896598,0.40150759,105250.0,105240.0,0.03928]
[1749985896822,0.40150759,105250.0,105240.0,0.05709007]
[1749985897028,0.40150759,105250.0,105240.0,0.05709011]
[1749985897243,0.40150759,105250.0,105240.0,0.05708996]
[1749985897448,0.40150759,105250.0,105240.0,0.03928]
[1749985897657,0.40150759,105250.0,105240.0,0.05708997]
[1749985897864,0.40150759,105250.0,105240.0,0.05709022]
[1749985898094,0.40150759,105250.0,105240.0,0.03928]
[1749985898290,0.40150759,105250.0,105240.0,0.05709017]
[1749985898707,0.40150759,105250.0,105240.0,0.05708984]
[1749985899022,0.40150759,105250.0,105240.0,0.05709023]
[1749985899221,0.40150759,105250.0,105240.0,0.03928]
[1749985900039,0.40150759,105250.0,105240.0,0.05709014]
[1749985900238,0.40150759,105250.0,105240.0,0.0570902]
[1749985900436,0.40150759,105250.0,105240.0,0.05708992]
[1749985900654,0.40150759,105250.0,105240.0,0.03928]
[1749985901023,0.43230759,105250.0,105230.0,0.0312]
[1749985901251,0.43230759,105250.0,105230.0,0.07048]
[1749985901450,0.40374759,105250.0,105230.0,0.07048]
[1749985901676,0.028561,105240.0,105230.0,0.07048]
[1749985902085,0.028561,105240.0,105230.0,0.0312]
[1749985902418,0.028561,105240.0,105230.0,0.07048]
[1749985905618,0.028561,105240.0,105230.0,0.05548]
[1749985906003,0.028561,105240.0,105230.0,0.0732885]
[1749985906152,0.028561,105240.0,105230.0,0.07328833]
[1749985906546,0.028561,105240.0,105230.0,0.07328897]
[1749985906723,0.028561,105240.0,105230.0,0.07328899]
[1749985906881,0.028561,105240.0,105230.0,0.05548]
[1749985907091,0.028561,105240.0,105230.0,0.073289]
[1749985907699,0.028561,105240.0,105230.0,0.07328861]
[1749985907894,0.05283131,105240.0,105230.0,0.07328861]
[1749985908093,0.028561,105240.0,105230.0,0.05548]
[1749985908611,0.028561,105240.0,105230.0,0.07328875]
[1749985908815,0.028561,105240.0,105230.0,0.07328871]
[1749985909241,0.028561,105240.0,105230.0,0.07328861]
[1749985909414,0.028561,105240.0,105230.0,0.07328867]
[1749985909613,0.028561,105240.0,105230.0,0.07328865]
[1749985910023,0.028561,105240.0,105230.0,0.05548]
[1749985910209,0.028561,105240.0,105230.0,0.07328857]
[1749985910639,0.028561,105240.0,105230.0,0.05548]
[1749985910839,0.028561,105240.0,105230.0,0.0732887]
[1749985911044,0.028561,105240.0,105230.0,0.05548]
[1749985911245,0.028561,105240.0,105230.0,0.07328877]
[1749985911449,0.028561,105240.0,105230.0,0.07328888]
[1749985911630,0.028561,105240.0,105230.0,0.07328887]
[1749985911839,0.028561,105240.0,105230.0,0.07328862]
[1749985912047,0.028561,105240.0,105230.0,0.07328844]
[1749985912242,0.028561,105240.0,105230.0,0.07328833]
[1749985912568,0.028561,105240.0,105230.0,0.0732938]
[1749985912728,0.028561,105240.0,105230.0,0.07329386]
[1749985912923,0.028561,105240.0,105230.0,0.05548]
[1749985913143,0.028561,105240.0,105230.0,0.07329388]
[1749985913395,0.028561,105240.0,105230.0,0.05548]
[1749985913618,0.028561,105240.0,105230.0,0.07329402]
[1749985913828,0.028561,105240.0,105230.0,0.05548]
[1749985914031,0.028561,105240.0,105230.0,0.07329348]
[1749985914266,0.028561,105240.0,105230.0,0.07329344]
[1749985914508,0.028561,105240.0,105230.0,0.07329353]
[1749985914754,0.028561,105240.0,105230.0,0.07329306]
[1749985915004,0.028561,105240.0,105230.0,0.0732928]
[1749985915255,0.028561,105240.0,105230.0,0.07329267]
[1749985915498,0.028561,105240.0,105230.0,0.0894928]
[1749985915723,0.028561,105240.0,105230.0,0.08949283]
[1749985915934,0.028561,105240.0,105230.0,0.0894927]
[1749985916752,0.028561,105240.0,105230.0,0.08949214]
[1749985916959,0.028561,105240.0,105230.0,0.08949205]
[1749985917176,0.028561,105240.0,105230.0,0.08949145]
[1749985917379,0.028561,105240.0,105230.0,0.07168]
[1749985917579,0.028561,105240.0,105230.0,0.08949084]
[1749985917789,0.028561,105240.0,105230.0,0.08949078]
[1749985918011,0.028561,105240.0,105230.0,0.07168]
[1749985918723,0.028561,105240.0,105230.0,0.08949083]
[1749985918925,0.028561,105240.0,105230.0,0.08949066]
[1749985919128,0.028561,105240.0,105230.0,0.07168]
[1749985919344,0.028561,105240.0,105230.0,0.08948954]
[1749985919554,0.028561,105240.0,105230.0,0.08949027]
[1749985919940,0.028561,105240.0,105230.0,0.08949]
[1749985920144,0.028561,105240.0,105230.0,0.07168]
[1749985924614,0.36794759,105250.0,105230.0,0.28908176]
[1749985924851,0.03352156,105260.0,105250.0,0.0329]
[1749985925083,0.03356901,105260.0,105250.0,0.12914176]
[1749985925308,0.03356901,105260.0,105250.0,0.14694456]
[1749985925541,0.03356901,105260.0,105250.0,0.12914176]
[1749985925766,0.03356901,105260.0,105250.0,0.14688847]
[1749985926235,0.03356901,105260.0,105250.0,0.12914176]
[1749985926448,0.03356901,105260.0,105250.0,0.14688848]
[1749985926660,0.03456901,105260.0,105250.0,0.1468885]
[1749985926870,0.03456901,105260.0,105250.0,0.12914176]
[1749985927072,0.03856901,105260.0,105250.0,0.1478885]
[1749985927302,0.03360345,105260.0,105250.0,0.14688806]
[1749985927517,0.03360345,105260.0,105250.0,0.12914176]
[1749985927723,0.03560345,105260.0,105250.0,0.1468875]
[1749985927927,0.03560345,105260.0,105250.0,0.12914176]
[1749985928177,0.00704745,105260.0,105250.0,0.12914176]
[1749985928431,0.00704745,105260.0,105250.0,0.14688528]
[1749985928643,0.00704745,105260.0,105250.0,0.12914176]
[1749985928849,0.00704745,105260.0,105250.0,0.14514254]
[1749985929064,0.00604745,105260.0,105250.0,0.16288464]
[1749985929284,0.00604745,105260.0,105250.0,0.31644349]
[1749985929503,0.00704745,105260.0,105250.0,0.31644089]
[1749985929720,0.00704745,105260.0,105250.0,0.31644087]
[1749985929939,0.00704745,105260.0,105250.0,0.31644079]
[1749985929940,4.745e-05,105260.0,105250.0,0.31644079]
[1749985930164,4.745e-05,105260.0,105250.0,0.29870254]
[1749985930388,4.745e-05,105260.0,105250.0,0.35947179]
[1749985930619,4.745e-05,105260.0,105250.0,0.35946903]
[1749985930850,4.745e-05,105260.0,105250.0,0.34173421]
[1749985931099,4.745e-05,105260.0,105250.0,0.20590731]
[1749985931318,4.745e-05,105260.0,105250.0,0.41889192]
[1749985931545,4.745e-05,105260.0,105250.0,0.39880258]
[1749985932019,4.745e-05,105260.0,105250.0,0.20596262]
[1749985932240,4.745e-05,105260.0,105250.0,0.39880263]
[1749985932453,4.745e-05,105260.0,105250.0,0.38101421]
[1749985932679,4.745e-05,105260.0,105250.0,0.39880303]
[1749985933125,4.745e-05,105260.0,105250.0,0.39880253]
[1749985933590,4.745e-05,105260.0,105250.0,0.39880239]
[1749985934003,4.745e-05,105260.0,105250.0,0.38101421]
[1749985934430,4.745e-05,105260.0,105250.0,0.39880239]
[1749985934657,4.745e-05,105260.0,105250.0,0.39880191]
[1749985935108,4.745e-05,105260.0,105250.0,0.38101421]